bitfinex-derivatives/quotes_BNBF0:USTF0_20250316
["timestamp","ask_amount","ask_price","bid_price","bid_amount"]
[1742164614246,0.27319697,601.88,601.04,0.603]
[1742164614442,0.27319697,601.9,601.04,0.603]
[1742164614642,0.27319697,601.89,601.04,0.603]
[1742164614847,0.27319697,601.9,601.04,0.603]
[1742164615048,0.27319697,601.89,601.04,0.603]
[1742164615250,0.27319697,601.9,601.04,0.603]
[1742164621754,0.27319763,601.89,601.04,0.603]
[1742164621954,0.27319763,601.9,601.04,0.603]
[1742164624654,0.27324274,601.89,601.04,0.603]
[1742164624855,0.27324274,601.9,601.04,0.603]
[1742164625157,0.27324274,601.89,601.04,0.603]
[1742164625360,0.27324274,601.88,601.04,0.603]
[1742164625558,0.27324274,601.87,601.04,0.603]
[1742164625759,0.27324274,601.86,601.04,0.603]
[1742164625952,0.27324274,601.9,601.04,0.603]
[1742164626157,0.27324274,601.89,601.04,0.603]
[1742164626356,0.27324274,601.9,601.04,0.603]
[1742164630661,0.27327715,601.89,601.04,0.603]
[1742164630961,0.27327715,601.88,601.04,0.603]
[1742164631157,0.27327715,601.9,601.04,0.603]
[1742164631761,0.27326991,601.89,601.04,0.603]
[1742164631961,0.27326991,601.9,601.04,0.603]
[1742164632162,0.27326991,601.89,601.04,0.603]
[1742164632361,0.33227558,601.91,601.04,0.603]
[1742164633262,0.27327418,601.9,601.04,0.603]
[1742164635461,0.33227558,601.91,601.04,0.603]
[1742164636064,0.27328346,601.9,601.04,0.603]
[1742164636261,0.33227558,601.91,601.04,0.603]
[1742164636467,0.27329397,601.9,601.04,0.603]
[1742164639765,0.33227558,601.91,601.04,0.603]
[1742164640372,0.27327928,601.9,601.04,0.603]
[1742164643172,0.33227558,601.91,601.04,0.603]
[1742164643472,0.273254,601.9,601.04,0.603]
[1742164645172,0.27326182,601.89,601.04,0.603]
[1742164645373,0.27326182,601.9,601.04,0.603]
[1742164645569,0.27326182,601.89,601.04,0.603]
[1742164645775,0.33227558,601.91,601.04,0.603]
[1742164646173,0.27326403,601.9,601.04,0.603]
[1742164648472,0.33227558,601.91,601.04,0.603]
[1742164648672,0.27325464,601.9,601.04,0.603]
[1742164648967,0.33227558,601.91,601.04,0.603]
[1742164649171,0.27321667,601.9,601.04,0.603]
[1742164652176,0.33227558,601.91,601.04,0.603]
[1742164652371,0.27317403,601.89,601.04,0.603]
[1742164652678,0.27317403,601.88,601.04,0.603]
[1742164652873,0.27317403,601.87,601.04,0.603]
[1742164653075,0.27317403,601.9,601.04,0.603]
[1742164653274,0.27317403,601.89,601.04,0.603]
[1742164653471,0.27317403,601.9,601.04,0.603]
[1742164653675,0.27317403,601.89,601.04,0.603]
[1742164653873,0.27317403,601.88,601.04,0.603]
[1742164654076,0.27317403,601.9,601.04,0.603]
[1742164654280,0.27317403,601.89,601.04,0.603]
[1742164654580,0.27317403,601.88,601.04,0.603]
[1742164654780,0.27317403,601.9,601.04,0.603]
[1742164655079,0.27317403,601.89,601.04,0.603]
[1742164655280,0.33229215,601.88,601.04,0.603]
[1742164655580,0.27317403,601.87,601.04,0.603]
[1742164655781,0.33230319,601.86,601.04,0.603]
[1742164656079,0.2731387,601.85,601.04,0.603]
[1742164656475,0.33231423,601.84,601.04,0.603]
[1742164656679,0.2731387,601.83,601.04,0.603]
[1742164656874,0.60545845,601.83,601.04,0.603]
[1742164657080,0.60546397,601.82,601.04,0.603]
[1742164657280,0.6054695,601.81,601.04,0.603]
[1742164657476,0.2731387,601.8,601.04,0.603]
[1742164657678,0.3323308,601.81,601.04,0.603]
[1742164657878,0.27313134,601.8,601.04,0.603]
[1742164659780,0.27314856,601.79,601.04,0.603]
[1742164659981,0.27314856,601.8,601.04,0.603]
[1742164660181,0.27314856,601.79,601.04,0.603]
[1742164660382,0.27314856,601.8,601.04,0.603]
[1742164660683,0.27314856,601.79,601.04,0.603]
[1742164660985,0.27314856,601.78,601.04,0.603]
[1742164661284,0.27314856,601.77,601.04,0.603]
[1742164661479,0.27314856,601.8,601.04,0.603]
[1742164661683,0.27314295,601.79,601.04,0.603]
[1742164661883,0.27314295,601.78,601.04,0.603]
[1742164662083,0.27314295,601.8,601.04,0.603]
[1742164662283,0.27314295,601.79,601.04,0.603]
[1742164662584,0.27314295,601.78,601.04,0.603]
[1742164662784,0.27314295,601.8,601.04,0.603]
[1742164663084,0.27314295,601.79,601.04,0.603]
[1742164663481,0.27314295,601.78,601.04,0.603]
[1742164663683,0.27314295,601.77,601.04,0.603]
[1742164663986,0.27314295,601.76,601.04,0.603]
[1742164664183,0.27314295,601.75,601.04,0.603]
[1742164664379,0.27314295,601.8,601.04,0.603]
[1742164664579,0.27314295,601.79,601.04,0.603]
[1742164664779,0.27314295,601.8,601.04,0.603]
[1742164666885,0.3323308,601.81,601.04,0.603]
[1742164669089,0.27321893,601.8,601.04,0.603]
[1742164670789,0.3323308,601.81,601.04,0.603]
[1742164670986,0.27323149,601.8,601.04,0.603]
[1742164672691,0.27324062,601.79,601.04,0.603]
[1742164672991,0.3323308,601.81,601.04,0.603]
[1742164673290,4.36576936,602.46,601.04,0.603]
[1742164673491,5.40230794,602.45,601.04,0.603]
[1742164673691,1.79032429,602.44,601.04,0.603]
[1742164673893,0.33199428,602.42,601.04,0.603]
[1742164674092,0.27326111,602.41,601.04,0.603]
[1742164674295,0.27326111,602.4,601.04,0.603]
[1742164674492,0.27326111,602.39,601.04,0.603]
[1742164674690,0.27326111,602.38,601.04,0.603]
[1742164674890,0.33199428,602.42,601.04,0.603]
[1742164674891,0.27326111,602.37,601.04,0.603]
[1742164675092,0.27326111,602.36,601.04,0.603]
[1742164675293,0.27326111,602.35,601.04,0.603]
[1742164675595,0.27326111,602.34,601.04,0.603]
[1742164675892,0.27326111,602.33,601.04,0.603]
[1742164676092,0.33199428,602.42,601.04,0.603]
[1742164676394,0.27327017,602.41,601.04,0.603]
[1742164676595,0.33201082,602.39,601.04,0.603]
[1742164676896,0.27327017,602.38,601.04,0.603]
[1742164677094,0.33202735,602.36,601.04,0.603]
[1742164677293,0.27327017,602.35,601.04,0.603]
[1742164677487,0.33204389,602.33,601.04,0.603]
[1742164677693,0.27327017,602.32,601.04,0.603]
[1742164678093,0.27327414,602.31,601.04,0.603]
[1742164678393,0.27327414,602.3,601.04,0.603]
[1742164678690,0.27327414,602.29,601.04,0.603]
[1742164678887,0.33204389,602.33,601.04,0.603]
[1742164678888,0.27327414,602.32,601.04,0.603]
[1742164679092,0.27327414,602.31,601.04,0.603]
[1742164679396,0.27327414,602.3,601.04,0.603]
[1742164679597,0.27327414,602.32,601.04,0.603]
[1742164680395,0.33204389,602.33,601.04,0.603]
[1742164680592,0.33205492,602.31,601.04,0.603]
[1742164680997,0.27331724,602.3,601.04,0.603]
[1742164681294,0.33206594,602.29,601.04,0.603]
[1742164681697,0.27331724,602.28,601.04,0.603]
[1742164682399,0.33207697,602.27,601.04,0.603]
[1742164682595,0.27331724,602.26,601.04,0.603]
[1742164683303,0.27332547,602.25,601.04,0.603]
[1742164683500,0.27332547,602.26,601.04,0.603]
[1742164683800,0.27332547,602.25,601.04,0.93575655]
[1742164683998,0.27332547,602.24,601.04,0.93575655]
[1742164684203,0.27332547,602.26,601.04,0.93575655]
[1742164684405,0.27332547,602.25,601.04,0.93575655]
[1742164684708,0.27332547,602.24,601.04,0.93575655]
[1742164685004,0.27332547,602.23,601.04,0.93575655]
[1742164685302,0.33207697,602.27,601.04,0.93575655]
[1742164685303,0.27332547,602.22,601.04,0.93575655]
[1742164685503,0.27332547,602.26,601.04,0.93575655]
[1742164685904,0.27332816,602.25,601.04,0.93575655]
[1742164686099,0.27332816,602.26,601.04,0.93575655]
[1742164686304,0.27332816,602.25,601.04,0.93575655]
[1742164686507,0.27332816,602.26,601.04,0.93575655]
[1742164686707,0.33207697,602.27,601.04,0.93575655]
[1742164686708,0.27332816,602.25,601.04,0.93575655]
[1742164687101,0.27332816,602.24,601.04,0.93575655]
[1742164687305,0.27332816,602.26,601.04,0.93575655]
[1742164687504,0.27332816,602.25,601.04,0.93575655]
[1742164687903,0.60542167,602.24,601.04,0.93575655]
[1742164688102,0.27332816,602.23,601.04,0.93575655]
[1742164688305,0.33210454,602.22,601.04,0.93575655]
[1742164689810,0.27330946,602.2,601.04,0.93575655]
[1742164690310,0.33212109,602.19,601.04,0.93575655]
[1742164690605,0.27330946,602.18,601.04,0.93575655]
[1742164690809,0.33212109,602.19,601.04,0.93575655]
[1742164691004,0.27328842,602.18,601.04,0.93575655]
[1742164694208,0.33212109,602.19,601.04,0.93575655]
[1742164694412,0.27332851,602.18,601.04,0.93575655]
[1742164696412,0.27331803,602.17,601.04,0.93575655]
[1742164696616,0.27331803,602.18,601.04,0.93575655]
[1742164696919,0.27331803,602.17,601.04,0.93575655]
[1742164697219,0.27331803,602.16,601.04,0.93575655]
[1742164697413,0.27331803,602.15,601.04,0.93575655]
[1742164697623,0.27331803,602.18,601.04,0.93575655]
[1742164697920,0.27331803,602.17,601.04,0.93575655]
[1742164698219,0.27331803,602.18,601.04,0.93575655]
[1742164698420,0.27331803,602.17,601.04,0.93575655]
[1742164698623,0.27331803,602.18,601.04,0.93575655]
[1742164698822,0.27331803,602.17,601.04,0.93575655]
[1742164699122,0.27331803,602.16,601.04,0.93575655]
[1742164699322,0.27331803,602.15,601.04,0.93575655]
[1742164699520,0.27331803,602.18,601.04,0.93575655]
[1742164699717,0.27331803,602.17,601.04,0.93575655]
[1742164699922,0.27331803,602.18,601.04,0.93575655]
[1742164700222,0.33212109,602.19,601.04,0.93575655]
[1742164700223,0.27331803,602.17,601.04,0.93575655]
[1742164700424,0.27331803,602.18,601.04,0.93575655]
[1742164702921,0.27330367,602.17,601.04,0.93575655]
[1742164703128,0.27330367,602.18,601.04,0.93575655]
[1742164703326,0.27330367,602.17,601.04,0.93575655]
[1742164703522,0.27330045,602.16,601.04,0.93575655]
[1742164703724,0.27330045,602.18,601.04,0.93575655]
[1742164703921,0.27330045,602.17,601.04,0.93575655]
[1742164704125,0.27330045,602.18,601.04,0.93575655]
[1742164704427,0.33212109,602.19,601.04,0.93575655]
[1742164704428,0.27330045,602.17,601.04,0.93575655]
[1742164704620,0.27330045,602.18,601.04,0.93575655]
[1742164704825,0.27330045,602.17,601.04,0.93575655]
[1742164705021,0.27330045,602.18,601.04,0.93575655]
[1742164705225,0.27330045,602.17,601.04,0.93575655]
[1742164705422,0.27330045,602.18,601.04,0.93575655]
[1742164705623,0.27330045,602.17,601.04,0.93575655]
[1742164705823,0.27330045,602.18,601.04,0.93575655]
[1742164706127,0.27330045,602.17,601.04,0.93575655]
[1742164706328,0.27330045,602.18,601.04,0.93575655]
[1742164706527,0.27330045,602.17,601.04,0.93575655]
[1742164706729,0.27330045,602.18,601.04,0.93575655]
[1742164707027,0.27330045,602.17,601.04,0.93575655]
[1742164707230,0.27330045,602.16,601.04,0.93575655]
[1742164707530,0.27330045,602.15,601.04,0.93575655]
[1742164707725,0.27330045,602.18,601.04,0.93575655]
[1742164707922,0.33212109,602.19,601.04,0.93575655]
[1742164707923,0.27330045,602.17,601.04,0.93575655]
[1742164708127,0.27330045,602.18,601.04,0.93575655]
[1742164708325,0.27330045,602.17,601.04,0.93575655]
[1742164708529,0.27330045,602.16,601.04,0.93575655]
[1742164708726,0.27330045,602.15,601.04,0.93575655]
[1742164708930,0.27330045,602.18,601.04,0.93575655]
[1742164709229,0.27330045,602.17,601.04,0.93575655]
[1742164709429,0.27330045,602.16,601.04,0.93575655]
[1742164709631,0.27330045,602.18,601.04,0.93575655]
[1742164709931,0.27330045,602.17,601.04,0.93575655]
[1742164710126,0.27330045,602.18,601.04,0.93575655]
[1742164710325,0.27330045,602.17,601.04,0.93575655]
[1742164710531,0.27330045,602.18,601.04,0.93575655]
[1742164710732,0.27330045,602.17,601.04,0.93575655]
[1742164710932,0.27330045,602.18,601.04,0.93575655]
[1742164711131,0.27330045,602.17,601.04,0.93575655]
[1742164711339,0.27330045,602.16,601.04,0.93575655]
[1742164711533,0.27330045,602.18,601.04,0.93575655]
[1742164711728,0.27330045,602.17,601.04,0.93575655]
[1742164711931,0.27330045,602.18,601.04,0.93575655]
[1742164712132,0.27330045,602.17,601.04,0.93575655]
[1742164712340,0.27330045,602.18,601.04,0.93575655]
[1742164712535,0.33212109,602.19,601.04,0.93575655]
[1742164712835,0.27326745,602.18,601.04,0.93575655]
[1742164714633,0.27325748,602.17,601.04,0.93575655]
[1742164714834,0.27325748,602.18,601.04,0.93575655]
[1742164718145,0.33212109,602.19,601.04,0.93575655]
[1742164718338,0.27325041,602.18,601.04,0.93575655]
[1742164719939,0.33212109,602.19,601.04,0.93575655]
[1742164720131,0.27324708,602.18,601.04,0.93575655]
[1742164720834,0.27324708,602.18,601.05,0.30557085]
[1742164723740,0.27327588,602.17,601.05,0.803]
[1742164723942,0.27327588,602.18,601.05,0.803]
[1742164724140,0.27327588,602.17,601.05,0.803]
[1742164724342,0.27327588,602.16,601.05,0.803]
[1742164724637,0.27327588,602.15,601.05,0.803]
[1742164724842,0.27327588,602.18,601.05,0.803]
[1742164725038,0.27327588,602.14,601.05,0.803]
[1742164725235,0.33212109,602.19,601.05,0.803]
[1742164725236,0.27327588,602.13,601.05,0.803]
[1742164725436,0.27327588,602.18,601.05,0.803]
[1742164725639,0.27326962,602.17,601.05,0.803]
[1742164725841,0.27326962,602.16,601.05,0.803]
[1742164726042,0.27326962,602.15,601.05,0.803]
[1742164726244,0.27326962,602.14,601.05,0.803]
[1742164726542,0.27326962,602.13,601.05,0.803]
[1742164726742,0.27326962,602.12,601.05,0.803]
[1742164726943,0.27326962,602.18,601.05,0.803]
[1742164727147,0.27326962,602.17,601.05,0.803]
[1742164727338,0.27326962,602.18,601.05,0.803]
[1742164729337,0.33212109,602.19,601.05,0.803]
[1742164729338,0.2733078,602.17,601.05,0.803]
[1742164729540,0.2733078,602.16,601.05,0.803]
[1742164729746,0.2733078,602.15,601.05,0.803]
[1742164729949,0.2733078,602.14,601.05,0.803]
[1742164730245,0.2733078,602.13,601.05,0.803]
[1742164730440,0.33212109,602.19,601.05,0.803]
[1742164730441,0.2733078,602.12,601.05,0.803]
[1742164730746,0.2733078,602.11,601.05,0.803]
[1742164730946,0.2733078,602.18,601.05,0.803]
[1742164731145,0.2733078,602.1,601.05,0.803]
[1742164731352,0.2733078,602.09,601.05,0.803]
[1742164731540,0.2733078,602.18,601.05,0.803]
[1742164732951,0.33212109,602.19,601.05,0.803]
[1742164733144,0.27330408,602.18,601.05,0.803]
[1742164733546,0.27330408,602.18,601.06,0.30552018]
[1742164733945,0.27330408,602.18,601.05,0.803]
[1742164734148,0.27330408,602.18,601.06,0.30552524]
[1742164738256,0.27330408,602.18,601.07,0.33273994]
[1742164738654,0.27330408,602.18,601.08,0.30552524]
[1742164738847,0.27330408,602.18,601.09,0.33272887]
[1742164739047,0.27330408,602.18,601.1,0.30552524]
[1742164739249,0.27330408,602.18,601.1,0.63824858]
[1742164739452,0.27330408,602.18,601.1,0.33272334]
[1742164740052,0.33212109,602.19,601.1,0.33272334]
[1742164740253,0.27329655,602.18,601.1,0.33272334]
[1742164741751,0.27328242,602.17,601.1,0.33272334]
[1742164741957,0.27328242,602.18,601.1,0.33272334]
[1742164742256,0.27328242,602.17,601.1,0.33272334]
[1742164742457,0.27328242,602.18,601.1,0.33272334]
[1742164742651,0.27328242,602.17,601.1,0.33272334]
[1742164742852,0.27328242,602.16,601.1,0.33272334]
[1742164743055,0.27328242,602.15,601.1,0.33272334]
[1742164743252,0.27328242,602.14,601.1,0.33272334]
[1742164743455,0.27328242,602.18,601.1,0.33272334]
[1742164743655,0.27328242,602.13,601.1,0.33272334]
[1742164743854,0.27328242,602.17,601.1,0.33272334]
[1742164744056,0.27328242,602.16,601.1,0.33272334]
[1742164744456,0.27328242,602.15,601.1,0.33272334]
[1742164744653,0.27328242,602.18,601.1,0.33272334]
[1742164744851,0.33212109,602.19,601.1,0.33272334]
[1742164744852,0.27328242,602.17,601.1,0.33272334]
[1742164745055,0.33212109,602.19,601.1,0.33272334]
[1742164745056,0.27328242,602.16,601.1,0.33272334]
[1742164745251,0.33212109,602.19,601.1,0.33272334]
[1742164745252,0.27328242,602.18,601.1,0.33272334]
[1742164745552,0.27328242,602.17,601.1,0.33272334]
[1742164745756,0.27328242,602.16,601.1,0.33272334]
[1742164745953,0.27328242,602.18,601.1,0.33272334]
[1742164746157,0.27328242,602.17,601.1,0.33272334]
[1742164748956,0.27326586,602.18,601.1,0.33272334]
[1742164751562,0.33212109,602.19,601.11,0.30542864]
[1742164751963,2.51575315,602.52,601.11,0.30542864]
[1742164752163,0.27338271,602.51,601.11,0.30542864]
[1742164752965,0.27340101,602.5,601.12,0.30538645]
[1742164753157,0.27340101,602.49,601.13,0.30538645]
[1742164753358,0.27340101,602.48,601.14,0.30538645]
[1742164753562,0.27340101,602.47,601.15,0.30538645]
[1742164753761,0.27340101,602.46,601.16,0.30538645]
[1742164753959,0.27340101,602.51,601.17,0.33268459]
[1742164754160,0.27340101,602.5,601.18,0.30538645]
[1742164754565,2.51575315,602.61,601.17,0.33268459]
[1742164754762,0.6052973,602.6,601.18,0.30538361]
[1742164754967,0.27340218,602.59,601.18,0.30538361]
[1742164755266,0.27340218,602.59,601.19,0.33267353]
[1742164755460,0.33190613,602.58,601.2,0.30538361]
[1742164755666,0.27340218,602.57,601.2,0.30538361]
[1742164755864,0.27340218,602.57,601.21,0.33266246]
[1742164756061,0.27340218,602.57,601.22,0.30538361]
[1742164756468,0.33190613,602.58,601.21,0.33266246]
[1742164756770,0.2734191,602.57,601.22,0.30536848]
[1742164757970,0.2734191,602.57,601.23,0.33265139]
[1742164758170,0.2734191,602.57,601.24,0.30536848]
[1742164758372,0.27342342,602.56,601.25,0.30535091]
[1742164758669,0.27342342,602.55,601.26,0.30535091]
[1742164758867,0.27342342,602.57,601.24,0.30535091]
[1742164759064,0.27342342,602.56,601.25,0.63799124]
[1742164759366,0.27342342,602.57,601.26,0.63798571]
[1742164759563,0.27342342,602.56,601.27,0.30535091]
[1742164759768,0.27342342,602.57,601.28,0.33262373]
[1742164759969,0.27342342,602.56,601.28,0.33262373]
[1742164760167,0.27342342,602.57,601.29,0.30538033]
[1742164760365,0.27340158,602.56,601.28,0.33262373]
[1742164760567,0.27340158,602.57,601.29,0.30537884]
[1742164760776,0.27340158,602.56,601.3,0.33261267]
[1742164761068,0.27340158,602.55,601.3,0.33261267]
[1742164761268,0.27340158,602.57,601.3,0.33261267]
[1742164761468,0.27340158,602.56,601.3,0.33261267]
[1742164761677,0.27340158,602.57,601.3,0.33261267]
[1742164761876,0.27340158,602.56,601.3,0.33261267]
[1742164762067,0.27340158,602.55,601.3,0.33261267]
[1742164762271,0.27340158,602.54,601.3,0.33261267]
[1742164762472,0.27340158,602.53,601.3,0.33261267]
[1742164762675,0.27340158,602.57,601.3,0.33261267]
[1742164762874,0.60531873,602.56,601.3,0.33261267]
[1742164763075,0.60532424,602.55,601.3,0.33261267]
[1742164763273,0.27340158,602.54,601.3,0.33261267]
[1742164764069,0.33193367,602.53,601.3,0.33261267]
[1742164764269,0.27340158,602.52,601.3,0.33261267]
[1742164764474,0.60534076,602.52,601.3,0.33261267]
[1742164764675,0.27340158,602.51,601.3,0.33261267]
[1742164765672,0.27333401,602.5,601.3,0.33261267]
[1742164765875,0.33193918,602.52,601.3,0.33261267]
[1742164765876,0.27333401,602.51,601.3,0.33261267]
[1742164766074,0.60528421,602.5,601.3,0.33261267]
[1742164766277,0.60528972,602.49,601.3,0.33261267]
[1742164766478,0.60529523,602.48,601.3,0.33261267]
[1742164766780,0.27333401,602.47,601.3,0.33261267]
[1742164767475,0.27334699,602.46,601.3,0.33261267]
[1742164767687,0.27334699,602.47,601.3,0.33261267]
[1742164771178,0.27334699,602.47,601.3,1.06861267]
[1742164773184,0.27334699,602.47,601.31,0.30541316]
[1742164773480,0.27334699,602.47,601.3,1.06861267]
[1742164773890,0.27334699,602.47,601.31,0.30541969]
[1742164774580,0.27334699,602.47,601.3,1.06861267]
[1742164774781,0.33196122,602.48,601.3,1.06861267]
[1742164774984,0.27327523,602.47,601.3,1.06861267]
[1742164780487,0.27325291,602.46,601.3,1.06861267]
[1742164780793,0.27325291,602.45,601.3,1.06861267]
[1742164780993,0.27325291,602.47,601.3,1.06861267]
[1742164783995,0.33196122,602.48,601.3,1.06861267]
[1742164784188,0.27313158,602.46,601.3,1.06861267]
[1742164784393,0.27313158,602.45,601.3,1.06861267]
[1742164784594,0.27313158,602.44,601.3,1.06861267]
[1742164784793,0.27313158,602.47,601.3,1.06861267]
[1742164784994,0.27313158,602.46,601.3,1.06861267]
[1742164785197,0.27313158,602.47,601.3,1.06861267]
[1742164785499,0.27313158,602.46,601.3,1.06861267]
[1742164785695,0.33196122,602.48,601.3,1.06861267]
[1742164785899,0.27308917,602.47,601.3,1.06861267]
[1742164793007,0.33196122,602.48,601.3,1.06861267]
[1742164793203,0.27299181,602.47,601.3,1.06861267]
[1742164794705,0.33196122,602.48,601.3,1.06861267]
[1742164794903,0.2729902,602.47,601.3,1.06861267]
[1742164800408,0.27301312,602.46,601.3,1.06861267]
[1742164800609,0.27301312,602.47,601.3,1.06861267]
[1742164801604,0.33196122,602.48,601.3,1.06861267]
[1742164801806,0.27299739,602.47,601.3,1.06861267]
[1742164803913,0.33197224,602.46,601.3,1.06861267]
[1742164804209,0.27299739,602.45,601.3,1.06861267]
[1742164804410,0.33198326,602.44,601.3,1.06861267]
[1742164804610,0.27299739,602.43,601.3,1.06861267]
[1742164804812,0.33199428,602.42,601.3,1.06861267]
[1742164805010,0.27299739,602.41,601.3,1.06861267]
[1742164805310,0.33200531,602.4,601.3,1.06861267]
[1742164805505,0.27295012,602.39,601.3,1.06861267]
[1742164805910,0.33201633,602.38,601.3,1.06861267]
[1742164806113,0.27295012,602.37,601.3,1.06861267]
[1742164806405,0.33202735,602.36,601.3,1.06861267]
[1742164806708,0.27295012,602.35,601.3,1.06861267]
[1742164806910,0.33203838,602.34,601.3,1.06861267]
[1742164807210,0.27295012,602.33,601.3,1.06861267]
[1742164811009,0.27295012,602.33,601.3,0.736]
[1742164811206,0.3320494,602.32,601.3,0.736]
[1742164811514,0.27295012,602.31,601.3,0.736]
[1742164811912,0.33206043,602.3,601.3,0.736]
[1742164812112,0.27295012,602.29,601.3,0.736]
[1742164812312,0.33207146,602.28,601.3,0.736]
[1742164812512,0.27295012,602.27,601.3,0.736]
[1742164812711,0.33208248,602.26,601.3,0.736]
[1742164812906,0.27295012,602.25,601.3,0.736]
[1742164813107,0.33209351,602.24,601.3,0.736]
[1742164813309,0.27309422,602.23,601.3,0.736]
[1742164815307,0.33209351,602.24,601.3,0.736]
[1742164816416,0.27311841,602.23,601.3,0.736]
[1742164823320,0.27328223,602.22,601.3,0.736]
[1742164823519,0.27328223,602.23,601.3,0.736]
[1742164823719,0.27328223,602.22,601.3,0.736]
[1742164823920,0.27328223,602.23,601.3,0.736]
[1742164824123,0.27328223,602.22,601.3,0.736]
[1742164824322,0.27328223,602.23,601.3,0.736]
[1742164824517,0.27328223,602.22,601.3,0.736]
[1742164824716,0.27328223,602.23,601.3,0.736]
[1742164824919,0.27328223,602.22,601.3,0.736]
[1742164825115,0.33209351,602.24,601.3,0.736]
[1742164825422,0.27327828,602.23,601.3,0.736]
[1742164828622,0.33209351,602.24,601.3,0.736]
[1742164828819,0.27332288,602.23,601.3,0.736]
[1742164830425,0.27333866,602.22,601.3,0.736]
[1742164830625,0.27333866,602.23,601.3,0.736]
[1742164830826,0.27333866,602.22,601.3,0.736]
[1742164831026,0.27333866,602.23,601.3,0.736]
[1742164832427,0.33209351,602.24,601.3,0.736]
[1742164832628,0.27333987,602.23,601.3,0.736]
[1742164835926,0.33209351,602.24,601.3,0.736]
[1742164837448,2.52631442,602.87,601.3,0.736]
[1742164837635,0.27338756,602.86,601.3,0.736]
[1742164837831,0.27338756,603.21,601.3,0.736]
[1742164838035,0.33176298,602.84,601.3,0.736]
[1742164838237,0.27338756,602.83,601.3,0.736]
[1742164839634,0.33177949,602.81,601.3,0.736]
[1742164839933,0.27350964,602.8,601.3,0.736]
[1742164840239,0.33179601,602.78,601.3,0.736]
[1742164840441,0.27350964,602.77,601.3,0.736]
[1742164840739,0.33181252,602.75,601.3,0.736]
[1742164841042,0.27350964,602.74,601.3,0.736]
[1742164841937,0.33182904,602.72,601.3,0.736]
[1742164842240,0.27350964,602.71,601.3,0.736]
[1742164843342,0.33184555,602.69,601.3,0.736]
[1742164843538,0.27350964,602.68,601.3,0.736]
[1742164843836,0.33186207,602.66,601.3,0.736]
[1742164844041,0.27350964,602.65,601.3,0.736]
[1742164844436,0.33187309,602.64,601.3,0.736]
[1742164844640,0.27350964,602.63,601.3,0.736]
[1742164844841,0.3318841,602.62,601.3,0.736]
[1742164845043,0.27350964,602.61,601.3,0.736]
[1742164845245,0.27349916,602.6,601.3,0.736]
[1742164845443,0.27349916,602.61,601.3,0.736]
[1742164845637,0.27349916,602.6,601.3,0.736]
[1742164845841,0.27349916,602.61,601.3,0.736]
[1742164846040,0.27349916,602.6,601.3,0.736]
[1742164846241,0.27349916,602.61,601.3,0.736]
[1742164846439,0.27349916,602.6,601.3,0.736]
[1742164846744,0.60539978,602.59,601.3,0.736]
[1742164847044,0.60537937,602.58,601.3,0.736]
[1742164847344,0.60538488,602.57,601.3,0.736]
[1742164847541,0.60539039,602.56,601.3,0.736]
[1742164847738,0.6053959,602.55,601.3,0.736]
[1742164847943,0.60540141,602.54,601.3,0.736]
[1742164848138,0.27347324,602.53,601.3,0.736]
[1742164848739,0.60540621,602.52,601.3,0.736]
[1742164848944,0.27346703,602.51,601.3,0.736]
[1742164849147,0.60541172,602.51,601.3,0.736]
[1742164849545,0.27346703,602.5,601.3,0.736]
[1742164849740,0.33195571,602.49,601.3,0.736]
[1742164849946,0.27346703,602.48,601.3,0.736]
[1742164850446,0.33196673,602.47,601.3,0.736]
[1742164850844,0.27346703,602.46,601.3,0.736]
[1742164853352,0.27345363,602.45,601.3,0.736]
[1742164853551,0.27345363,602.46,601.3,0.736]
[1742164857456,0.33196673,602.47,601.3,0.736]
[1742164857756,0.33196673,602.47,601.31,0.33260714]
[1742164861654,0.33196673,602.47,601.31,0.85360714]
[1742164864771,0.27343347,602.46,601.31,0.85360714]
[1742164865457,0.33196673,602.47,601.31,0.85360714]
[1742164865657,0.27340255,602.46,601.31,0.85360714]
[1742164866463,0.33196673,602.47,601.31,0.85360714]
[1742164866665,0.27340164,602.46,601.31,0.85360714]
[1742164867358,0.27341055,602.45,601.31,0.85360714]
[1742164867671,0.27341055,602.44,601.31,0.85360714]
[1742164867963,0.27341055,602.43,601.31,0.85360714]
[1742164868163,0.27341055,602.46,601.31,0.85360714]
[1742164868358,0.27341055,602.45,601.31,0.85360714]